Cogmind - Beta 16.1 @@@ ROGUE MODE // 2026.03.10 @ 18:08:57 Player: Wulphy Result: Smashed by cave-in Performance ------------- Evolutions (0) 0 Regions Visited (4) 800 Robots Destroyed (20) 100 Value Destroyed (475) 475 Prototype IDs (3) 60 Alien Tech Used (0) 0 Bonus (800) 800 TOTAL SCORE: 2235 Bonus ------- Registered with UFD 300 Met Optimus in HQ 500 Cogmind --------- Core Integrity 0/250 Matter 300/300 Energy 100/100 System Corruption 9% Temperature Cool (0) Movement Rolling (195) Ox7 Location -8/Scraptown Parts ------- > --- POWER (1) -------- (None) > --- PROPULSION (2) --- Armored Wheel > --- UTILITY (2) ------ Huge Storage Unit Hardened Medium Armor Plating > --- WEAPON (2) ------- LU-1G1's Laser Shovel > --- INVENTORY (25) --- Armored Treads Armored Wheel Armored Wheel Armored Wheel Overtuned Scrapsphere Improved Cooling System Disposable Heat Sink Large Storage Unit Matter Compressor (250) Rocket Booster Deep Structural Scanner Enhanced Optical Array Seismic Detector Medium Reactive Plating Makeshift Thermal Plating Mapping Drone Bay (3/3) Scrapoid Pod Subdweller Beam Cannon Gauss Rifle Flak Cannon Grenade Launcher Plasma Cutter CPS Tube (2) Heavy Mace Peak State ------------ > --- POWER ------------ Improved Deuterium Engine > --- PROPULSION ------- Armored Wheel Armored Wheel > --- UTILITY ---------- Huge Storage Unit Medium Reactive Plating > --- WEAPON ----------- Assault Cannon LU-1G1's Laser Shovel > --- INVENTORY -------- Armored Treads Armored Wheel Armored Wheel Armored Wheel Overtuned Scrapsphere Improved Cooling System Disposable Heat Sink Large Storage Unit Matter Compressor Rocket Booster Deep Structural Scanner Enhanced Optical Array Seismic Detector Hardened Medium Armor Plating Makeshift Thermal Plating Mapping Drone Bay Scrapoid Pod Subdweller Beam Cannon Gauss Rifle Flak Cannon Grenade Launcher Plasma Cutter CPS Tube Heavy Mace [Rating: 30] Favorites ----------- Power Light Ion Engine Engine Light Ion Engine Propulsion Armored Wheel Treads Light Treads Wheel Armored Wheel Utility Huge Storage Unit Device Disposable Heat Sink Storage Huge Storage Unit Protection Medium Reactive Plating Weapon Spread Laser Energy Gun Spread Laser Ballistic Gun Gauss Rifle Ballistic Cannon Assault Cannon Special Weapon Mining Laser Build | -11 -10 -10 -10 -8 ------- Run | Yrd Mat Min Sub Scr Slots Evolved . | . . . . . Power . | . . . . . Propulsion . | . . . . . Utility . | . . . . . Weapon . | . . . . . Parts Attached 27 | 7 4 3 5 8 Power 3 | 1 1 . . 1 Engine 3 | 1 1 . . 1 Core . | . . . . . Reactor . | . . . . . Propulsion 7 | 2 . 2 1 2 Treads 3 | 2 . . 1 . Leg . | . . . . . Wheel 4 | . . 2 . 2 Hover . | . . . . . Flight . | . . . . . Utility 6 | 2 . 1 1 2 Device 2 | 1 . . 1 . Storage 2 | 1 . 1 . . Processor . | . . . . . Hackware . | . . . . . Protection 2 | . . . . 2 Artifact . | . . . . . Weapon 11 | 2 3 . 3 3 Energy Gun 5 | 1 2 . 2 . Energy Cannon . | . . . . . Ballistic Gun 3 | 1 . . 1 1 Ballistic Cannon 1 | . . . . 1 Launcher . | . . . . . Special Weapon 2 | . 1 . . 1 Impact Weapon . | . . . . . Slashing Weapon . | . . . . . Piercing Weapon . | . . . . . Special Melee Weapon . | . . . . . Unidentified Prototypes 1 | . . . . 1 Parts Lost 7 | . . . 4 3 Power 1 | . . . . 1 Propulsion 2 | . . . 1 1 Utility . | . . . . . Weapon 4 | . . . 3 1 Highest Loss Streak 3 | . . . 2 3 To Critical Strikes . | . . . . . Average Backups 15 | 4 7 8 8 21 Power . | . . . . . Propulsion 5 | 2 3 4 4 5 Utility 5 | . . 1 2 8 Weapon 3 | 1 2 2 2 4 Tool/Special . | . . . . . Unused Backups 31 | . 5 . . 26 Power . | . . . . . Propulsion 8 | . 4 . . 4 Utility 12 | . . . . 12 Weapon 7 | . 1 . . 6 Tool/Special 4 | . . . . 4 Average Slot Usage (%) 99 | . 100 100 99 99 Engine 14 | . 14 14 14 14 Treads 2 | . 28 3 . . Wheel 25 | . . 24 27 28 Device 10 | . 14 14 14 8 Storage 13 | . 14 14 14 13 Protection 3 | . . . . 5 Energy Gun 8 | . 16 14 17 2 Ballistic Gun 10 | . 9 . 7 13 Ballistic Cannon 6 | . . . . 11 Special Weapon 1 | . 2 14 2 . Peak Build Rating 30 | 7 10 11 13 30 Average Rating 17 | 5 7 10 11 22 On Entrance 7 | . 7 9 11 12 Avg Prop Armor Cover (%) . | . . . . . Naked Turns . | . . . . . Heaviest Build 119 | 13 15 88 90 119 Greatest Support 40 | 40 40 40 24 24 Greatest Overweight (x) 4 | . . 3 3 4 Average Overweight (x) 3 | . . 2 3 3 Largest Inventory Capacity 25 | 8 8 25 25 25 Average Capacity 22 | 7 8 24 25 23 Most Carried 25 | 7 8 9 11 25 Average Carried 15 | 4 7 8 8 21 Final Capacity 25 | 8 8 25 25 25 Final Carried 25 | 7 8 8 11 25 Class Distribution -------------------- 100% | Mutant Dominant Class ---------------- Mutant | -10/Materials Mutant | -10/Mines Mutant | -10/Subcaves Mutant | -8/Scraptown Resources | -11 -10 -10 -10 -8 ----------- Run | Yrd Mat Min Sub Scr Matter Collected 1040 | 279 36 59 189 477 Remotely . | . . . . . Salvage Created 536 | 90 112 . 123 211 Parts 45 | 9 17 . 5 14 Haulers Intercepted . | . . . . . Recyclers Shooed . | . . . . . Parts Field Recycled . | . . . . . Retrieved Matter . | . . . . . Parts Self-Destructed 5 | . . . 5 . Prevented . | . . . . . Parts Restored . | . . . . . Kills | -11 -10 -10 -10 -8 ------- Run | Yrd Mat Min Sub Scr Combat Hostiles Destroyed 16 | . 6 . 6 4 Guns 14 | . 6 . 6 2 Cannons 2 | . . . . 2 Classes Destroyed 9 | 2 2 . 2 3 Builder 1 | . 1 . . . Tunneler 2 | 2 . . . . Recycler 1 | 1 . . . . Swarmer 7 | . 6 . 1 . Sentry 1 | . . . 1 . Subdweller 4 | . . . 4 . Federalist 1 | . . . . 1 Ranger 1 | . . . . 1 Scrapper 2 | . . . . 2 Best Kill Streak 4 | 3 4 . 2 4 Combat Bots Only 4 | . 3 . 2 4 Max Kills in Single Turn 2 | 1 2 . 1 2 Gunslinging . | . . . . . Exploded . | . . . . . Melee . | . . . . . Uniques/NPCs Destroyed . | . . . . . Combat | -11 -10 -10 -10 -8 -------- Run | Yrd Mat Min Sub Scr Hostile Shots Fired 99 | . 36 . 28 35 Missed 14 | . 6 . 5 3 Hits 85 | . 30 . 23 32 Projectile 85 | . 30 . 23 32 Critical Strikes 1 | . . . . 1 Damage Taken 1322 | . 235 . 521 566 Core 267 | . 89 . 81 97 Absorbed by Shields . | . . . . . Ignored by Resistances 28 | . . . . 28 Core Remaining (%) 100 | 100 . . . . Volleys Fired 47 | 3 13 . 18 13 Largest 2 | 2 2 . 2 2 Hottest 130 | 70 100 . 130 65 Shots Fired 89 | 6 25 . 34 24 Gun 73 | 6 24 . 32 11 Cannon 13 | . . . . 13 Launcher . | . . . . . Special 3 | . 1 . 2 . Kinetic 45 | 3 12 . 6 24 Thermal 44 | 3 13 . 28 . Explosive . | . . . . . Electromagnetic . | . . . . . Robot Hit Streak 13 | 4 7 . 13 4 Robot Miss Streak 5 | . 4 . 5 2 Penetration Max 1 | . . . . 1 Secondary Targets 1 | . 1 . . . Max Gunslinging Chain 1 | . 1 . . . Shots Hit Robots 60 | 4 12 . 29 15 Core Hits 49 | 3 7 . 34 5 Critical Kills . | . . . . . Critical Parts Destroyed . | . . . . . Critical Strikes 2 | . 2 . . . Burn 2 | . 2 . . . Melee Attacks . | . . . . . Impact . | . . . . . Slashing . | . . . . . Piercing . | . . . . . Sneak Attacks . | . . . . . Combat Hostiles . | . . . . . Follow-up Attacks . | . . . . . Damage Inflicted 1035 | 52 171 . 480 332 Guns 870 | 52 171 . 480 167 Cannons 165 | . . . . 165 Explosions . | . . . . . Melee . | . . . . . Ramming . | . . . . . Kinetic 470 | 15 82 . 41 332 Thermal 565 | 37 89 . 439 . Explosive . | . . . . . Electromagnetic . | . . . . . Impact . | . . . . . Slashing . | . . . . . Piercing . | . . . . . Highest Corruption . | . . . . . Average Corruption . | . . . . . Corruption Purged . | . . . . . Corruption Blocked . | . . . . . Overload Shots . | . . . . . Overflow Damage . | . . . . . Projectiles . | . . . . . Explosions . | . . . . . Melee . | . . . . . Knockbacks 1 | . . . . 1 Impact . | . . . . . Kinetic 1 | . . . . 1 Secondary . | . . . . . Self-Inflicted Damage . | . . . . . Shots . | . . . . . Rammed . | . . . . . Targets Rammed . | . . . . . Kicked . | . . . . . Crushed . | . . . . . Highest Temperature 314 | 18 72 . 72 314 Average Temperature 69 | 9 29 . 29 130 Received Heat Transfer 259 | . . . 72 187 Effects 1 | . . . . 1 Energy Bleed 1 | . . . . 1 Siege Activations . | . . . . . Martial Activations . | . . . . . Shielding Activations . | . . . . . Robots Disrupted . | . . . . . Combat Hostiles . | . . . . . Robots Corrupted . | . . . . . Combat Hostiles . | . . . . . Parts Fried 1 | . . . . 1 Impact Corruptions . | . . . . . Robots Melted . | . . . . . Combat Hostiles . | . . . . . Parts Melted 5 | . 4 . . 1 Heat Transferred 1068 | 111 407 . 550 . Parts Sabotaged . | . . . . . Parts Stolen . | . . . . . Parts Stripped . | . . . . . Power Chain Reactions . | . . . . . Alert | -11 -10 -10 -10 -8 ------- Run | Yrd Mat Min Sub Scr Maximum Alert Level . | . . . . . Low Security (%) 100 | 100 100 100 . . Level 1 . | . . . . . Level 2 . | . . . . . Level 3 . | . . . . . Level 4 . | . . . . . Level 5 . | . . . . . High Security . | . . . . . Max Security . | . . . . . Peak Influence 115 | 10 115 7 . . Initial 7 | . . 7 . . Average 27 | 1 60 . . . Influence Increases 216 | 15 161 . 40 . Destroy 0b10 Robot/C 160 | . 120 . 40 . Destroy 0b10 Robot/NC 20 | 15 5 . . . Destroy Leader 20 | . 20 . . . Destroy Structure 1 | . 1 . . . Lose Combat Pursuer 15 | . 15 . . . Influence Decreases 216 | 15 140 21 40 . Entered New Map 14 | . . 14 . . Time Decay 202 | 15 140 7 40 . Squads Dispatched 2 | . 2 . . . Investigation 1 | . 1 . . . Extermination . | . . . . . Reinforcement 1 | . 1 . . . Assault . | . . . . . Garrison . | . . . . . Intercept . | . . . . . Searches Triggered . | . . . . . Construction Impeded . | . . . . . Haulers Reinforced . | . . . . . Active Scanning Responses . | . . . . . Cargo Convoy Interrupts . | . . . . . Stealth | -11 -10 -10 -10 -8 --------- Run | Yrd Mat Min Sub Scr Distress Signals 2 | . 1 1 . . Communications Jammed . | . . . . . Distress Signals . | . . . . . Times Spotted 19 | . 8 . 6 5 Peak Tracking Total 5 | . 5 . 2 4 Tactical Retreats 2 | . 1 . . 1 Traps | -11 -10 -10 -10 -8 ------- Run | Yrd Mat Min Sub Scr Traps Triggered 2 | . 1 . 1 . Indirectly . | . . . . . Trap Hack Attempts . | . . . . . Triggered . | . . . . . Disarmed . | . . . . . Reprogrammed . | . . . . . Reused . | . . . . . Traps Extracted . | . . . . . Installed . | . . . . . Triggered . | . . . . . Machines | -11 -10 -10 -10 -8 ---------- Run | Yrd Mat Min Sub Scr Machines Disabled 4 | . . . . 4 Max in Single Turn 1 | . . . . 1 Machines Repaired . | . . . . . Machines Dismantled . | . . . . . Machines Sabotaged . | . . . . . Overloaded Fab Kills . | . . . . . Hacking | -11 -10 -10 -10 -8 --------- Run | Yrd Mat Min Sub Scr Machines Accessed 4 | . 1 . 1 2 Terminals 1 | . 1 . . . Fabricators . | . . . . . Repair Stations . | . . . . . Recycling Units . | . . . . . Scanalyzers . | . . . . . Garrison Access . | . . . . . Total Hacks 21 | . 1 . 3 17 Successful 20 | . . . 3 17 Failed 1 | . 1 . . . Catastrophic . | . . . . . Database Lockouts . | . . . . . Manual . | . . . . . Terminals 1 | . 1 . . . Fabricators . | . . . . . Repair Stations . | . . . . . Recycling Units . | . . . . . Scanalyzers . | . . . . . Garrison Access . | . . . . . Terminal Hacks 20 | . . . 3 17 Record 20 | . . . 3 17 Fabricator Hacks . | . . . . . Repair Station Hacks . | . . . . . Recycling Unit Hacks . | . . . . . Scanalyzer . | . . . . . Garrison Access Hacks . | . . . . . Unauthorized Hacks . | . . . . . Terminals . | . . . . . Fabricators . | . . . . . Repair Stations . | . . . . . Recycling Units . | . . . . . Scanalyzers . | . . . . . Garrison Access . | . . . . . Data Cores Recovered . | . . . . . Used . | . . . . . Hacking Detections 1 | . 1 . . . Full Trace Events . | . . . . . Feedback Events . | . . . . . Feedback Blocked . | . . . . . Robot Schematics Acquired . | . . . . . Robots Built . | . . . . . Authchips . | . . . . . Time . | . . . . . Total Robot Build Rating . | . . . . . Part Schematics Acquired . | . . . . . Parts Built . | . . . . . Authchips . | . . . . . Time . | . . . . . Total Part Build Rating . | . . . . . Part Studies Acquired . | . . . . . Parts Repaired . | . . . . . Time . | . . . . . Parts Recycled . | . . . . . Recycled Matter . | . . . . . Retrieved Matter . | . . . . . Retrieved Components . | . . . . . Parts Scanalyzed . | . . . . . Part Schematics Acquired . | . . . . . Parts Damaged . | . . . . . Bothacking | -11 -10 -10 -10 -8 ------------ Run | Yrd Mat Min Sub Scr Used RIF Installer . | . . . . . Robots Hacked . | . . . . . Non-combat . | . . . . . Combat . | . . . . . Robot Hacks Applied . | . . . . . Relay Couplers Released . | . . . . . Fabnet Peak Effective % . | . . . . . Robots Rewired . | . . . . . Allies Hacked . | . . . . . Hacks Repelled . | . . . . . Allies | -11 -10 -10 -10 -8 -------- Run | Yrd Mat Min Sub Scr Total Allies . | . . . . . Largest Group . | . . . . . Highest-Rated Group . | . . . . . Highest-Rated Ally . | . . . . . Total Orders . | . . . . . Ally Attacks . | . . . . . Total Damage . | . . . . . Kills . | . . . . . Allies Corrupted . | . . . . . Allies Melted 2 | . . . . 2 Intel | -11 -10 -10 -10 -8 ------- Run | Yrd Mat Min Sub Scr Active Infowar (turns) 1247 | 18 308 240 681 . Seismic 1247 | 18 308 240 681 . Robot Analysis Total . | . . . . . Derelict Logs Recovered 3 | . . 1 . 2 Drone Launches . | . . . . . Drone Recoveries . | . . . . . Exploration | -11 -10 -10 -10 -8 ------------- Run | Yrd Mat Min Sub Scr Turns Passed 4817 | 139 308 240 1372 2758 Spaces Moved 2801 | 71 152 173 767 1638 Core 4 | 4 . . . . Treads 226 | 67 152 7 . . Legs . | . . . . . Wheels 2571 | . . 166 767 1638 Hover . | . . . . . Flight . | . . . . . Fastest Speed 50 | 50 160 135 135 105 Average Speed 141 | 153 160 136 135 142 Slowest Speed 160 | 160 160 160 135 150 Overloaded Moves . | . . . . . Propulsion Burnouts . | . . . . . Robots Hopped . | . . . . . Potential Cave-ins 3 | . . . . 3 Cave-ins Triggered 1 | . . . . 1 Exploration Rate (%) 41 | 3 28 45 41 89 Regions Visited 4 Branch Regions 3 Pre-discovered Areas 5 | . . 1 1 3 Known Exits Taken . | . . . . . Unknown Exits Taken 4 | 1 1 1 1 . Scrap Searched 13 | . . 1 . 12 Spaces Dug 14 | . 1 . . 13 Terrain Destroyed 18 | . 1 . . 17 Melee . | . . . . . Projectile 5 | . 1 . . 4 AOE . | . . . . . Terrain Rammed . | . . . . . Walls Destroyed . | . . . . . Machines Disabled . | . . . . . Actions | -11 -10 -10 -10 -8 --------- Run | Yrd Mat Min Sub Scr Total 3568 | 91 195 177 1056 2049 Wait 588 | 4 10 . 247 327 Move 2796 | 70 151 172 766 1637 Hop . | . . . . . Pick Up 66 | 7 8 1 7 43 Fast Attach 11 | 7 2 . . 2 Attach 6 | . . . 4 2 Detach 1 | . . . . 1 Swap 27 | . 2 3 14 8 Drop 26 | . 9 1 . 16 Fire 47 | 3 13 . 18 13 Melee . | . . . . . Ram . | . . . . . Kick . | . . . . . Crush . | . . . . . Escape Stasis . | . . . . . Rewire . | . . . . . Trap . | . . . . . Miscellaneous . | . . . . . Route ------- -11/Scrapyard -10/Materials -10/Mines -10/Subcaves (discovered 2 exits: [*Mat] / *Scr) -8/Scraptown (discovered 2 exits: *Fac x2) History --------- Turn | Location | Event 21 | -11/Scrapyard | Discovered new exit (range 15) 140 | -11/Scrapyard | Entered Materials 314 | -10/Materials | Build established: Mutant 391 | -10/Materials | Discovered new exit (range 5) 448 | -10/Materials | Entered Mines 459 | -10/Mines | Met a Derelict bent on vengeance 486 | -10/Mines | Learned location of Storage (-8) 518 | -10/Mines | Assembled infested the area 683 | -10/Mines | Discovered new exit (range 5) 688 | -10/Mines | Entered Subcaves 689 | -10/Subcaves | Approached by a straggling Scientist 1130 | -10/Subcaves | Visited Clippyterm 1134 | -10/Subcaves | Learned location of Section 7 (-2) 1184 | -10/Subcaves | Shifting Twisted Machinery released Sub. Monowheel 1247 | -10/Subcaves | Discovered new exit (range 15) 1307 | -10/Subcaves | Ambushed by Subdwellers from Twisted Machinery 1319 | -10/Subcaves | Core integrity fell below 50% 1385 | -10/Subcaves | Scientist uncovered a shortcut to Scraptown 1706 | -10/Subcaves | A swath of the cavern ceiling suddenly collapsed 2060 | -10/Subcaves | Entered Scraptown 2323 | -8/Scraptown | Visited SPCMW 2337 | -8/Scraptown | Visited Cave Peace 2385 | -8/Scraptown | Visited Bundlers 2457 | -8/Scraptown | Visited Shadow of the Wyrm 2469 | -8/Scraptown | Visited IN-MT5's Study 2740 | -8/Scraptown | Visited Cyclists 2778 | -8/Scraptown | Visited TADAMA 2832 | -8/Scraptown | Scanned Subdweller tech in exchange for log data 2835 | -8/Scraptown | Learned Research garrison access intel 2836 | -8/Scraptown | Learned location of 2 exits from Proximity Caves 2857 | -8/Scraptown | Discovered new exit (range 7) 2989 | -8/Scraptown | Visited UFD Registry 2989 | -8/Scraptown | Registered with UFD as "Zeroshaft" 3018 | -8/Scraptown | Entered Cyclist Reading Room 3115 | -8/Scraptown | Visited Cartography Club 3139 | -8/Scraptown | Visited Curators Association 3190 | -8/Scraptown | Visited DA-N13 Charitable Foundation 3204 | -8/Scraptown | Found DCF Scrap (31 items) 3231 | -8/Scraptown | Visited Supply Room 3268 | -8/Scraptown | Visited Research Penetration Think Tank 3300 | -8/Scraptown | Visited Scrap Suit Storage 3319 | -8/Scraptown | Visited Chapter 10 3340 | -8/Scraptown | Visited LU-1G1's Boring Crew 3417 | -8/Scraptown | Visited Scrapoid Pod Storage 3425 | -8/Scraptown | Found Scrapoid Pod 3878 | -8/Scraptown | Learned location of Zion (-6) 3878 | -8/Scraptown | Learned location of Cetus (-6) 3878 | -8/Scraptown | Learned 16 Factory zone layouts 3878 | -8/Scraptown | Learned 8 Access zone layouts 3878 | -8/Scraptown | Learned 4 Mines zone layouts 3878 | -8/Scraptown | Learned 4 Storage zone layouts 3878 | -8/Scraptown | Learned 24 Upper Caves zone layouts 3878 | -8/Scraptown | Learned Research emergency access door positions 3878 | -8/Scraptown | Learned location of 1 exit from Factory 3878 | -8/Scraptown | Learned location of 1 exit from Lower Caves 3878 | -8/Scraptown | Learned location of 2 exits from Upper Caves 3878 | -8/Scraptown | Identified exit to Factory 3917 | -8/Scraptown | Found Deep Structural Scanner 4259 | -8/Scraptown | Met Optimus 4259 | -8/Scraptown | Accepted into 0bPrime 4659 | -8/Scraptown | Civil war broke out across Scraptown 4667 | -8/Scraptown | Found Prototype Special Weapon 4769 | -8/Scraptown | Identified LU-1G1's Laser Shovel 4770 | -8/Scraptown | Lost 11 allies 4794 | -8/Scraptown | Optimus destroyed in the chaos of civil war 4818 | -8/Scraptown | Crushed by falling debris 4818 | -8/Scraptown | Smashed by cave-in Last Messages --------------- 04787_ LU-1G1's Laser Shovel disintegrates Wall. 04789_ WI-R8F(g): "I'm having second thoughts about this." 04794_ ANNOUNCEMENT: The traitor Optimus has been dealt with. Put down any remaining collaborators. 04795_ LU-1G1's Laser Shovel disintegrates Earth. 04797_ LU-1G1's Laser Shovel disintegrates Wall. 04812_ LU-1G1's Laser Shovel disintegrates Earth. 04818_ The unstable cave ceiling collapses. 04818_ Crushed by falling debris. 04818_ Imp. Deuterium Engine destroyed. 04818_ System corrupted by crushing effect (+2). 04818_ Assault Cannon destroyed. 04818_ System corrupted by crushing effect (+3). 04818_ Arm. Wheel destroyed. 04818_ System corrupted by crushing effect (+4). Map ----- +----------------------------------------------------+ | | | | | | | | | ?????????????????????????????????????????????????? | | ?????????????????????????????????????????????????? | | ?????????????????????????????????????????????????? | | ?????????????????????????????????????????????????? | | ?????????????????????????????????????????????????? | | ?????????????????????????????????????????????????? | | ?????????????????????????????????????????????????? | | ?????????????????????????????????????????????????? | | ?????????????????????????????????????????????????? | | ?????????????????????????????????????????????????? | | ?????????????????????????????????????????????????? | | ?????????????????????????###?????????????????????? | | ????????????????????????"""#?????????????????????? | | ###########???####??????" "#?????????????????????? | | ##""|##"""#??## ##????? < #?????????????????????? | | ##"" ##!!"#### ###### ##????????????????????? | | #????????????????????? | | #????????????????????? | | ############## ###########????????????????????? | | ?????????????## ##??????????????????????????????? | | #?????????????# #??????# #??????????????????????? | | #?????????????# #??????#@#??????????????????????? | | ####??????????# #??????# #??????????????????????? | | "#??????????# #??????# #??????????????????????? | | ""#???????????# #??????# #??????????????????????? | | "/#?########### ########;#??????????????????????? | | ""###***## ## #""!"""!!##?????????????????????? | | "##!=!##!| ## #"[!"" !;#?????????????????????? | | ""###*%!![[% ## #!"! ""##?????????????????????? | | "$#?#[ [===! ## #" ! ""#??????????????????????? | | ""###[[*]==* ## #=! * #??????????????????????? | | "##![!=*!! ## #==! #??????????????????????? | | #########*#####=[%#=###"###??????????????????????? | | #########=#####%!##!### #????????????????????????? | | """"""""" """""*%!!="##"#######??????????????????? | | **[[!%["## """"""#??????????????????? | | =!!=![=*"#" """"""#??????????????????? | | *!=*%!!%"## ""#??????????????????? | | ![!%[ "## ""#??????????????????? | | ""#??????????????????? | | """""""""""""" ## "#??????????????????? | | """"""""""""" ## ""#??????????????????? | | ############# " ## " """"#??????????????????? | | ##????????#""=* ##"#######??????????????????? | | X"#????????#""%= "## #"""""#??????????????????? | | ##????????#""!! "#"! ! ! #??????????????????? | +----------------------------------------------------+ Best States ------------- Heat Dissipation 25 Coolant Potential 50 Energy Generation 16 Energy Capacity 290 Matter Stores 300 Matter Capacity 300 Sight Range 16 Terrain Scan Density 10 Armor Coverage 225 Resistance: KI 30 Evasion (%) 40 Recoil Reduction 2 Item Schematics ----------------- None Robot Schematics ------------------ None Fabricated ------------ Nothing Repaired ---------- Nothing Studied --------- None Alien Tech Used ----------------- None Achievements -------------- None Challenges ------------ None Game ------ Seed TachyonSniperNanosword Manual? 0 Play Time 00:34:29 Cumulative 432.8 hours Start 2026.03.10 @ 17:09:34 End 2026.03.10 @ 18:08:57 Sessions 3 Manual Loads 0 Difficulty Rogue Special Mode None Game No. 79 Rogue 79 Adventurer 0 Explorer 0 Win Type - Total 14 Types 5/1/5/1/0/0/1/1/0/0 Lore% 81 Gallery% 73 Achievement% 69 Wizard Run 0 Options --------- Layout 1 ASCII 0 Keyboard 1 Movement Vi Keybinds 1 Fullscreen 1 Font 36/Tamsyn Map View 50x40 Zoom Use 0% Tactical HUD 1 Map Filters NONE Filters NONE Steam 1 RUN: acc6c0bf-f53c-45f7-917c-88d53f3dc8a4